Workbook

Sheet Income & Expense
B2: Property | F2: Current Income | G2: Potentially | I2: Items | J2: Expenses
B3: 910 N 6Th St | F3: 1750 | G3: 1800 | I3: Water | J3: 1156
B4: Single Family | I4: WPS | J4: 3366.29
I5: Property Taxes | J5: 2355.23
I6: Insurance | J6: 699.39
B8: 912 N 6th St
B9: 5 Units
B10: 1. Studio ( Main Level ) | F10: 800 | G10: 875 | I10: Water | J10: 796.89
B11: 2. One Bedroom ( Main Level ) | F11: 1000 | G11: 1100 | I11: WPS | J11: 3909
B12: 3. Studio ( Upper ) | F12: 775 | G12: 800 | I12: Property Taxes | J12: 2877.57
B13: 5. One Bedroom ( Upper ) | F13: 800 | G13: 800 | I13: Insurance | J13: 1139.94
B14: 6. Two Bedroom Basement | F14: 600 | G14: 800
B19: 525-527 Fulton St.
B20: 2 Units
B21: 1. One Bedroom ( Upper ) | F21: 525 | G21: 550 | I21: Water | J21: 1123
B22: 2. Commercial Space ( Former Restaurant ) | F22: 0 | G22: 2000 | I22: WPS | J22: 4937
I23: Property Taxes | J23: 2503.89
I24: Insurance | J24: 2576.93
B25: 519 Fulton Street
B26: 10 Plex (All One bedroom and 6 Garages )
B27: 1. One Bedroom ( Lower ) | F27: 1200 | G27: 1250 | I27: Water | J27: 880
B28: 2.One Bedroom ( Lower ) | F28: 1000 | G28: 1050 | I28: WPS | J28: 3048
B29: 3.One Bedroom ( Lower ) | F29: 1200 | G29: 1250 | I29: Property Taxes | J29: 28807.19
B30: 4.One Bedroom ( Lower ) | F30: 950 | G30: 1000 | I30: Insurance | J30: 2532.29
B31: 5.One Bedroom ( Upper ) | F31: 1100 | G31: 1100 | I31: Security Per Mar | J31: 804
B32: 6.One Bedroom ( Upper ) | F32: 1200 | G32: 1250 | I32: Disposal (WM) | J32: 3804
B33: 7.One Bedroom ( Upper ) | F33: 1100 | G33: 1150
B34: 8.One Bedroom ( Upper ) | F34: 920 | G34: 950
B35: 9.One Bedroom (Upper) | F35: 1200 | G35: 1250
B36: 10.One Bedroom (Upper) | F36: 1200 | G36: 1250
B37: Washer and Dryers in each unit | F37: 300 | G37: 350
B39: Year | F39: =SUM(F3:F38)*12 -> 211440 | G39: =SUM(G3:G38)*12 -> 246900 | J39: =SUM(J2:J38) -> 67316.61
B42: Current Cap rate | C42: 2023 | E42: Potential Cap rate | F42: 2024
B43: 0.0627 | E43: 0.0769
B44: Gross Income | C44: 211440 | E44: Gross Income | F44: 246900
B45: Annual operating expenses | C45: -67316.61 | E45: Annual operating expenses | F45: =I45-70000 -> -70000
B46: Net operating income (NOI) | C46: =SUM(C44:C45) -> 144123.39 | E46: Net operating income (NOI) | F46: =SUM(F44:F45) -> 176900
B47: Purchase price / value | C47: 2300000 | E47: Purchase price / value | F47: 2300000

Sheet 519 Fulton St
B1: 519 Fulton Street | J1: 2023 | K1: 2024
B2: 10 Plex (All One bedroom and 6 Garages )
B3: 1. One Bedroom ( Lower ) | F3: 1200 | G3: 1200 | I3: Water | J3: 880 | K3: 1000
B4: 2.One Bedroom ( Lower ) | F4: 1000 | G4: 1050 | I4: WPS | J4: 3048 | K4: 3100
B5: 3.One Bedroom ( Lower ) | F5: 1200 | G5: 1200 | I5: Property Taxes | J5: 28467.46 | K5: 28467.46
B6: 4.One Bedroom ( Lower ) | F6: 950 | G6: 1000 | I6: Insurance | J6: 2532.29 | K6: 2700
B7: 5.One Bedroom ( Upper ) | F7: 1100 | G7: 1100 | I7: Security Per Mar | J7: 804 | K7: 804
B8: 6.One Bedroom ( Upper ) | F8: 1200 | G8: 1200 | I8: Disposal (WM) | J8: 3804 | K8: 3804
B9: 7.One Bedroom ( Upper ) | F9: 1100 | G9: 1150
B10: 8.One Bedroom ( Upper ) | F10: 920 | G10: 1000
B11: 9.One Bedroom (Upper) | F11: 1200 | G11: 1200
B12: 10.One Bedroom (Upper) | F12: 1200 | G12: 1200
B13: Washer and Dryers in each unit | F13: 300 | G13: 400
B15: Year | F15: =SUM(F1:F14)*12 -> 136440 | G15: =SUM(G1:G14)*12 -> 140400 | J15: =SUM(J3:J14) -> 39535.75 | K15: =SUM(K3:K14) -> 39875.46
B18: Current Cap rate | C18: 2023 | E18: Potential Cap rate | F18: 2024
B19: 0.0661 | E19: 0.0624
B20: Gross Income | C20: 136440 | E20: Gross Income | F20: 145000
B21: Annual operating expenses | C21: -39875.46 | E21: Annual operating expenses | F21: -42000
B22: Net operating income (NOI) | C22: =SUM(C20:C21) -> 96564.54 | E22: Net operating income (NOI) | F22: =SUM(F20:F21) -> 103000
B23: Purchase price / value | C23: 1650000 | E23: Purchase price / value | F23: 1650000

Sheet 912,910 & 525 Fulton St
A1: Property | E1: Current Income | F1: Potentially | H1: Items | I1: Expenses
A2: 910 N 6Th St | E2: 1750 | F2: 1800 | H2: Water | I2: 1156
A3: Single Family | H3: WPS | I3: 3366.29
H4: Property Taxes | I4: 2355.23
H5: Insurance | I5: 699.39
A7: 912 N 6th St
A8: 5 Units
A9: 1. Studio ( Main Level ) | E9: 800 | F9: 875 | H9: Water | I9: 796.89
A10: 2. One Bedroom ( Main Level ) | E10: 1000 | F10: 1100 | H10: WPS | I10: 3909
A11: 3. Studio ( Upper ) | E11: 775 | F11: 800 | H11: Property Taxes | I11: 2877.57
A12: 5. One Bedroom ( Upper ) | E12: 800 | F12: 800 | H12: Insurance | I12: 1139.94
A13: 6. Two Bedroom Basement | E13: 875 | F13: 800
A18: 525-527 Fulton St.
A19: 2 Units
A20: 1. One Bedroom ( Upper ) | E20: 525 | F20: 550 | H20: Water | I20: 1123
A21: 2. Commercial Space ( Former Restaurant ) | E21: 0 | F21: 2000 | H21: WPS | I21: 4937
H22: Property Taxes | I22: 2503.89
H23: Insurance | I23: 2576.93
A24: Monthly | E24: =SUM(E2:E23) -> 6525 | F24: =SUM(F2:F23) -> 8725 | I24: =SUM(I2:I23)/12 -> 2286.760833
A25: Yearly | E25: =E24*12 -> 78300 | F25: =F24*12 -> 104700 | I25: =I24*12 -> 27441.13
B28: Current Cap rate | C28: 2023 | E28: Potential Cap rate | F28: 2024
B29: 0.0782 | E29: 0.1197
B30: Gross Income | C30: 78300 | E30: Gross Income | F30: 104700
B31: Annual operating expenses | C31: -27441.13 | E31: Annual operating expenses | F31: -30000
B32: Net operating income (NOI) | C32: =SUM(C30:C31) -> 50858.87 | E32: Net operating income (NOI) | F32: =SUM(F30:F31) -> 74700
B33: Purchase price / value | C33: 675000 | E33: Purchase price / value | F33: 675000

Sheet 912 N 6Th, 525 Fulton St
A1: 912 N 6th St
A2: 5 Units
A3: 1. Studio ( Main Level ) | E3: 800 | F3: 875 | H3: Water | I3: 796.89
A4: 2. One Bedroom ( Main Level ) | E4: 1000 | F4: 1100 | H4: WPS | I4: 3909
A5: 3. Studio ( Upper ) | E5: 775 | F5: 800 | H5: Property Taxes | I5: 2877.57
A6: 5. One Bedroom ( Upper ) | E6: 800 | F6: 800 | H6: Insurance | I6: 1139.94
A7: 6. Two Bedroom Basement | E7: 875 | F7: 800
A12: 525-527 Fulton St.
A13: 2 Units
A14: 1. One Bedroom ( Upper ) | E14: 525 | F14: 550 | H14: Water | I14: 1123
A15: 2. Commercial Space ( Former Restaurant ) | E15: 0 | F15: 2000 | H15: WPS | I15: 4937
H16: Property Taxes | I16: 2503.89
H17: Insurance | I17: 2576.93
A18: Monthly | E18: =SUM(E1:E17) -> 4775 | F18: =SUM(F1:F17) -> 6925 | I18: =SUM(I1:I17)/12 -> 1655.351667
A19: Yearly | E19: =E18*12 -> 57300 | F19: =F18*12 -> 83100 | I19: =SUM(I3:I17) -> 19864.22
B22: Current Cap rate | C22: 2024 | E22: Potential Cap rate | F22: 2025
B23: 0.0713 | E23: 0.1204
B24: Gross Income | C24: 57300 | E24: Gross Income | F24: 83100
B25: Annual operating expenses | C25: -19864 | E25: Annual operating expenses | F25: -22000
B26: Net operating income (NOI) | C26: =SUM(C24:C25) -> 37436 | E26: Net operating income (NOI) | F26: =SUM(F24:F25) -> 61100
B27: Purchase price / value | C27: 525000 | E27: Purchase price / value | F27: 525000
